[Event "IV Elllobregat Open Chess Tmnt"]
[Site "Sant Boi de Llobregat, Spain"]
[Date "2023.12.01"]
[Round "2.4"]
[White "Johansson, Linus"]
[Black "Pichot, Alan"]
[Result "0-1"]
[TimeControl "90min/40moves + 15min/end + 30sec from move 1"]
[WhiteFideId "1711113"]
[BlackFideId "110973"]
[WhiteElo "2439"]
[BlackElo "2650"]

1. d4 {[%clk 01:30:57]} {[%emt 00:00:02]} Nf6 {[%clk 01:29:45]} {[%emt
00:01:15]} 2. c4 {[%clk 01:31:21]} {[%emt 00:00:07]} e6 {[%clk 01:30:06]}
{[%emt 00:00:08]} 3. Bf4 {[%clk 01:31:47]} {[%emt 00:00:04]} d5 {[%clk
01:26:53]} {[%emt 00:03:43]} 4. cxd5 {[%clk 01:32:12]} {[%emt 00:00:05]} exd5
{[%clk 01:27:09]} {[%emt 00:00:15]} 5. e3 {[%clk 01:32:37]} {[%emt 00:00:05]}
Bd6 {[%clk 01:24:00]} {[%emt 00:03:38]} 6. Bxd6 {[%clk 01:33:01]} {[%emt
00:00:07]} Qxd6 {[%clk 01:24:24]} {[%emt 00:00:06]} 7. Bd3 {[%clk 01:33:18]}
{[%emt 00:00:12]} O-O {[%clk 01:24:17]} {[%emt 00:00:37]} 8. Nc3 {[%clk
01:33:43]} {[%emt 00:00:05]} c6 {[%clk 01:21:59]} {[%emt 00:02:49]} 9. h3
{[%clk 01:34:05]} {[%emt 00:00:08]} Re8 {[%clk 01:18:25]} {[%emt 00:04:04]} 10.
Qc2 {[%clk 01:33:52]} {[%emt 00:00:43]} Nbd7 {[%clk 01:12:46]} {[%emt
00:06:08]} 11. Nf3 {[%clk 01:34:15]} {[%emt 00:00:07]} g6 {[%clk 01:08:13]}
{[%emt 00:05:03]} 12. O-O {[%clk 01:32:11]} {[%emt 00:02:34]} Nf8 {[%clk
01:07:32]} {[%emt 00:01:10]} 13. Rfb1 {[%clk 01:31:39]} {[%emt 00:01:02]} Ne6
{[%clk 01:04:23]} {[%emt 00:03:39]} 14. b4 {[%clk 01:27:36]} {[%emt 00:04:33]}
a5 {[%clk 00:52:12]} {[%emt 00:12:41]} 15. Qa4 {[%clk 01:08:19]} {[%emt
00:19:47]} b5 {[%clk 00:48:42]} {[%emt 00:03:59]} 16. Qb3 {[%clk 01:07:03]}
{[%emt 00:01:46]} a4 {[%clk 00:43:11]} {[%emt 00:06:01]} 17. Qc2 {[%clk
01:07:28]} {[%emt 00:00:05]} Ng7 {[%clk 00:41:39]} {[%emt 00:02:01]} 18. a3
{[%clk 00:54:28]} {[%emt 00:13:31]} Bf5 {[%clk 00:40:26]} {[%emt 00:01:43]} 19.
Re1 {[%clk 00:49:06]} {[%emt 00:05:52]} Bxd3 {[%clk 00:32:15]} {[%emt
00:08:42]} 20. Qxd3 {[%clk 00:49:31]} {[%emt 00:00:05]} Ne4 {[%clk 00:28:38]}
{[%emt 00:04:07]} 21. Rac1 {[%clk 00:47:31]} {[%emt 00:02:30]} f6 {[%clk
00:21:46]} {[%emt 00:07:21]} 22. Qb1 {[%clk 00:45:54]} {[%emt 00:02:07]} Nf5
{[%clk 00:16:44]} {[%emt 00:05:32]} 23. Nxe4 {[%clk 00:43:31]} {[%emt
00:02:53]} Rxe4 {[%clk 00:16:58]} {[%emt 00:00:16]} 24. Rc5 {[%clk 00:40:27]}
{[%emt 00:03:34]} Rf8 {[%clk 00:14:34]} {[%emt 00:02:54]} 25. Qc2 {[%clk
00:37:43]} {[%emt 00:03:13]} Ne7 {[%clk 00:14:40]} {[%emt 00:00:25]} 26. Rc1
{[%clk 00:36:20]} {[%emt 00:01:53]} g5 {[%clk 00:12:14]} {[%emt 00:02:56]} 27.
Rxc6 {[%clk 00:28:49]} {[%emt 00:08:00]} Nxc6 {[%clk 00:12:37]} {[%emt
00:00:08]} 28. Qxc6 {[%clk 00:29:15]} {[%emt 00:00:03]} Qxc6 {[%clk 00:12:20]}
{[%emt 00:00:47]} 29. Rxc6 {[%clk 00:29:40]} {[%emt 00:00:05]} Ree8 {[%clk
00:12:41]} {[%emt 00:00:09]} 30. Rc5 {[%clk 00:29:25]} {[%emt 00:00:45]} Rc8
{[%clk 00:13:03]} {[%emt 00:00:08]} 31. Kf1 {[%clk 00:28:20]} {[%emt 00:01:35]}
Kf7 {[%clk 00:13:22]} {[%emt 00:00:11]} 32. Ke2 {[%clk 00:28:16]} {[%emt
00:00:34]} Ke6 {[%clk 00:13:43]} {[%emt 00:00:09]} 33. Kd2 {[%clk 00:28:22]}
{[%emt 00:00:24]} Rb8 {[%clk 00:12:27]} {[%emt 00:01:47]} 34. Ng1 {[%clk
00:21:14]} {[%emt 00:07:37]} h5 {[%clk 00:10:56]} {[%emt 00:02:01]} 35. Ne2
{[%clk 00:21:21]} {[%emt 00:00:23]} Rfc8 {[%clk 00:11:21]} {[%emt 00:00:06]} 36.
Nc3 {[%clk 00:15:12]} {[%emt 00:06:39]} Rxc5 {[%clk 00:09:50]} {[%emt
00:02:01]} 37. dxc5 {[%clk 00:15:32]} {[%emt 00:00:09]} h4 {[%clk 00:10:00]}
{[%emt 00:00:20]} 38. Ne2 {[%clk 00:13:44]} {[%emt 00:02:18]} f5 {[%clk
00:08:16]} {[%emt 00:02:14]} 39. Kd3 {[%clk 00:13:26]} {[%emt 00:00:49]} Kd7
{[%clk 00:05:14]} {[%emt 00:03:32]} 40. Nd4 {[%clk 00:24:20]} {[%emt 00:04:36]}
g4 {[%clk 00:19:18]} {[%emt 00:01:26]} 41. Ke2 {[%clk 00:19:09]} {[%emt
00:05:40]} Rg8 {[%clk 00:12:16]} {[%emt 00:07:32]} 42. Kf1 {[%clk 00:17:57]}
{[%emt 00:01:43]} Rf8 {[%clk 00:12:03]} {[%emt 00:00:43]} 43. Nxb5 {[%clk
00:07:15]} {[%emt 00:11:12]} f4 {[%clk 00:11:51]} {[%emt 00:00:42]} 44. exf4
{[%clk 00:07:24]} {[%emt 00:00:21]} g3 {[%clk 00:09:30]} {[%emt 00:02:51]} 45.
f3 {[%clk 00:05:55]} {[%emt 00:01:59]} Rxf4 {[%clk 00:09:54]} {[%emt 00:00:06]}
46. Ke2 {[%clk 00:06:07]} {[%emt 00:00:19]} Rc4 {[%clk 00:08:02]} {[%emt
00:02:22]} 47. Kd2 {[%clk 00:05:44]} {[%emt 00:00:53]} d4 {[%clk 00:07:55]}
{[%emt 00:00:37]} 48. Na7 {[%clk 00:02:23]} {[%emt 00:03:51]} Kc7 {[%clk
00:06:15]} {[%emt 00:02:10]} 49. Nb5+ {[%clk 00:01:53]} {[%emt 00:01:00]} Kd7
{[%clk 00:04:36]} {[%emt 00:02:09]} 50. Na7 {[%clk 00:02:17]} {[%emt 00:00:06]}
Rc3 {[%clk 00:03:45]} {[%emt 00:01:20]} 51. c6+ {[%clk 00:02:26]} {[%emt
00:00:21]} Kd8 {[%clk 00:04:12]} {[%emt 00:00:03]} 52. Nb5 {[%clk 00:02:40]}
{[%emt 00:00:17]} Rxf3 {[%clk 00:03:49]} {[%emt 00:00:52]} 53. Nxd4 {[%clk
00:01:42]} {[%emt 00:01:28]} Rf2+ {[%clk 00:03:10]} {[%emt 00:01:09]} 54. Kc3
{[%clk 00:02:07]} {[%emt 00:00:05]} Rxg2 {[%clk 00:02:43]} {[%emt 00:00:58]} 55.
b5 {[%clk 00:02:29]} {[%emt 00:00:08]} Rg1 {[%clk 00:02:02]} {[%emt 00:01:11]}
56. b6 {[%clk 00:00:51]} {[%emt 00:02:08]} Rb1 {[%clk 00:01:53]} {[%emt
00:00:39]} 57. Ne6+ {[%clk 00:00:34]} {[%emt 00:00:47]} Kc8 {[%clk 00:01:32]}
{[%emt 00:00:51]} 58. b7+ {[%clk 00:00:51]} {[%emt 00:00:13]} Kb8 {[%clk
00:01:57]} {[%emt 00:00:04]} 59. Nf4 {[%clk 00:00:36]} {[%emt 00:00:45]} Rc1+
{[%clk 00:01:42]} {[%emt 00:00:45]} 0-1

[Event "IV Elllobregat Open Chess Tmnt"]
[Site "Sant Boi de Llobregat, Spain"]
[Date "2023.12.01"]
[Round "2.5"]
[White "Aravindh, Chithambaram Vr."]
[Black "Proudian, Armen"]
[Result "1-0"]
[TimeControl "90min/40moves + 15min/end + 30sec from move 1"]
[WhiteFideId "5072786"]
[BlackFideId "2130734"]
[WhiteElo "2638"]
[BlackElo "2428"]

1. e4 {[%clk 01:30:56]} {[%emt 00:00:03]} e5 {[%clk 01:30:36]} {[%emt
00:00:25]} 2. Nf3 {[%clk 01:31:16]} {[%emt 00:00:10]} Nc6 {[%clk 01:30:43]}
{[%emt 00:00:23]} 3. Bb5 {[%clk 01:31:37]} {[%emt 00:00:08]} a6 {[%clk
01:30:11]} {[%emt 00:01:03]} 4. Ba4 {[%clk 01:31:59]} {[%emt 00:00:08]} d6
{[%clk 01:30:02]} {[%emt 00:00:40]} 5. Bxc6+ {[%clk 01:24:13]} {[%emt
00:08:17]} bxc6 {[%clk 01:30:22]} {[%emt 00:00:10]} 6. d4 {[%clk 01:24:38]}
{[%emt 00:00:04]} exd4 {[%clk 01:29:03]} {[%emt 00:01:49]} 7. Qxd4 {[%clk
01:25:00]} {[%emt 00:00:07]} Nf6 {[%clk 01:27:45]} {[%emt 00:01:48]} 8. O-O
{[%clk 01:19:05]} {[%emt 00:06:25]} Be7 {[%clk 01:25:09]} {[%emt 00:03:07]} 9.
e5 {[%clk 01:17:41]} {[%emt 00:01:54]} c5 {[%clk 01:23:28]} {[%emt 00:02:12]}
10. Qd3 {[%clk 01:17:36]} {[%emt 00:00:34]} dxe5 {[%clk 01:22:18]} {[%emt
00:01:40]} 11. Qxd8+ {[%clk 01:17:58]} Bxd8 {[%clk 01:22:37]} {[%emt 00:00:19]}
12. Nxe5 {[%clk 01:18:22]} {[%emt 00:00:07]} Nd5 {[%clk 01:21:26]} {[%emt
00:01:41]} 13. Na3 {[%clk 01:17:41]} {[%emt 00:01:10]} O-O {[%clk 01:02:50]}
{[%emt 00:19:06]} 14. Bd2 {[%clk 01:17:36]} {[%emt 00:00:35]} Bf6 {[%clk
01:00:39]} {[%emt 00:02:41]} 15. Rfe1 {[%clk 01:14:36]} {[%emt 00:03:30]} Re8
{[%clk 00:54:53]} {[%emt 00:06:17]} 16. Nac4 {[%clk 01:08:03]} {[%emt
00:07:03]} Bf5 {[%clk 00:47:53]} {[%emt 00:07:29]} 17. c3 {[%clk 01:05:24]}
{[%emt 00:03:10]} h5 {[%clk 00:44:45]} {[%emt 00:03:39]} 18. h3 {[%clk
01:01:10]} {[%emt 00:04:44]} Nb6 {[%clk 00:37:57]} {[%emt 00:07:18]} 19. Bf4
{[%clk 01:00:09]} {[%emt 00:01:30]} g5 {[%clk 00:22:38]} {[%emt 00:15:48]} 20.
Bh2 {[%clk 01:00:11]} {[%emt 00:00:28]} Be6 {[%clk 00:19:29]} {[%emt 00:03:40]}
21. Nd2 {[%clk 00:58:43]} {[%emt 00:01:58]} Bd5 {[%clk 00:17:16]} {[%emt
00:02:44]} 22. Nb3 {[%clk 00:43:07]} {[%emt 00:16:06]} Na4 {[%clk 00:14:25]}
{[%emt 00:03:22]} 23. Nd7 {[%clk 00:42:42]} {[%emt 00:00:54]} Bg7 {[%clk
00:14:16]} {[%emt 00:00:39]} 24. Bxc7 {[%clk 00:41:18]} {[%emt 00:01:54]} Bxb3
{[%clk 00:03:34]} {[%emt 00:11:12]} 25. axb3 {[%clk 00:28:45]} {[%emt
00:13:03]} Nxb2 {[%clk 00:03:57]} {[%emt 00:00:07]} 26. Ba5 {[%clk 00:26:24]}
{[%emt 00:02:51]} c4 {[%clk 00:02:33]} {[%emt 00:01:55]} 27. Reb1 {[%clk
00:18:16]} {[%emt 00:08:37]} Nd3 {[%clk 00:01:48]} {[%emt 00:01:15]} 28. bxc4
{[%clk 00:17:44]} {[%emt 00:01:02]} Ra7 {[%clk 00:00:49]} {[%emt 00:01:29]} 29.
Nb6 {[%clk 00:17:33]} {[%emt 00:00:41]} Rc7 {[%clk 00:01:08]} {[%emt 00:00:11]}
30. Rd1 {[%clk 00:15:56]} {[%emt 00:02:08]} Nb2 {[%clk 00:00:37]} {[%emt
00:01:01]} 31. Rd5 {[%clk 00:11:27]} {[%emt 00:04:59]} Nxc4 {[%clk 00:00:58]}
{[%emt 00:00:09]} 32. Rxg5 {[%clk 00:11:52]} {[%emt 00:00:05]} Re5 {[%clk
00:00:33]} {[%emt 00:00:56]} 33. Rxe5 {[%clk 00:09:52]} {[%emt 00:02:30]} Bxe5
{[%clk 00:00:59]} {[%emt 00:00:04]} 34. Nxc4 {[%clk 00:10:18]} {[%emt
00:00:04]} Rxc4 {[%clk 00:01:25]} {[%emt 00:00:04]} 35. Kf1 {[%clk 00:10:29]}
{[%emt 00:00:19]} Rc5 {[%clk 00:01:18]} {[%emt 00:00:37]} 36. Ra3 {[%clk
00:10:51]} {[%emt 00:00:08]} Kh7 {[%clk 00:00:39]} {[%emt 00:01:08]} 37. Bb4
{[%clk 00:10:21]} {[%emt 00:01:00]} Rc6 {[%clk 00:00:58]} {[%emt 00:00:11]} 38.
Ke2 {[%clk 00:10:34]} {[%emt 00:00:16]} Kg6 {[%clk 00:01:16]} {[%emt 00:00:12]}
39. Kd3 {[%clk 00:10:41]} {[%emt 00:00:23]} Kf5 {[%clk 00:01:28]} {[%emt
00:00:18]} 40. Ra5 {[%clk 00:23:49]} {[%emt 00:02:23]} Rg6 {[%clk 00:16:03]}
{[%emt 00:00:56]} 41. g3 {[%clk 00:14:23]} {[%emt 00:09:55]} h4 {[%clk
00:15:46]} {[%emt 00:00:46]} 42. gxh4 {[%clk 00:12:01]} {[%emt 00:02:53]} Rh6
{[%clk 00:15:17]} {[%emt 00:00:58]} 43. Be7 {[%clk 00:12:26]} {[%emt 00:00:06]}
f6 {[%clk 00:13:34]} {[%emt 00:02:13]} 44. Ra4 {[%clk 00:11:51]} {[%emt
00:01:05]} Rh7 {[%clk 00:13:21]} {[%emt 00:00:43]} 45. Bc5 {[%clk 00:12:08]}
{[%emt 00:00:13]} Rd7+ {[%clk 00:07:04]} {[%emt 00:06:48]} 46. Bd4 {[%clk
00:12:21]} {[%emt 00:00:16]} Kf4 {[%clk 00:07:17]} {[%emt 00:00:16]} 47. Rxa6
{[%clk 00:10:48]} {[%emt 00:02:03]} Kf3 {[%clk 00:07:19]} {[%emt 00:00:28]} 48.
h5 {[%clk 00:10:53]} {[%emt 00:00:25]} Kf4 {[%clk 00:04:38]} {[%emt 00:03:11]}
49. Ra7 {[%clk 00:09:47]} {[%emt 00:01:36]} Rd8 {[%clk 00:04:24]} {[%emt
00:00:45]} 50. h6 {[%clk 00:10:08]} {[%emt 00:00:08]} 1-0

[Event "IV Elllobregat Open Chess Tmnt"]
[Site "Sant Boi de Llobregat, Spain"]
[Date "2023.12.01"]
[Round "2.6"]
[White "Ter-Sahakyan, Samvel"]
[Black "Vantika, Agrawal"]
[Result "1-0"]
[TimeControl "90min/40moves + 15min/end + 30sec from move 1"]
[WhiteFideId "13302531"]
[BlackFideId "25050389"]
[WhiteElo "2618"]
[BlackElo "2421"]

1. d4 {[%clk 01:30:54]} {[%emt 00:00:04]} Nf6 {[%clk 01:27:55]} {[%emt
00:03:07]} 2. c4 {[%clk 01:30:43]} {[%emt 00:00:41]} e6 {[%clk 01:27:58]}
{[%emt 00:00:27]} 3. Bf4 {[%clk 01:28:03]} {[%emt 00:03:09]} Bb4+ {[%clk
01:09:48]} {[%emt 00:18:41]} 4. Nd2 {[%clk 01:28:12]} {[%emt 00:00:21]} d5
{[%clk 01:08:33]} {[%emt 00:01:46]} 5. cxd5 {[%clk 01:16:04]} {[%emt 00:12:38]}
exd5 {[%clk 01:06:34]} {[%emt 00:02:29]} 6. a3 {[%clk 01:14:12]} {[%emt
00:02:22]} Bd6 {[%clk 01:03:48]} {[%emt 00:03:17]} 7. Bxd6 {[%clk 01:11:07]}
{[%emt 00:03:35]} Qxd6 {[%clk 01:03:38]} {[%emt 00:00:40]} 8. e3 {[%clk
01:11:32]} {[%emt 00:00:05]} O-O {[%clk 00:59:31]} {[%emt 00:04:37]} 9. Bd3
{[%clk 01:10:21]} {[%emt 00:01:40]} c6 {[%clk 00:57:52]} {[%emt 00:02:10]} 10.
h3 {[%clk 01:08:12]} {[%emt 00:02:39]} Nbd7 {[%clk 00:56:17]} {[%emt 00:02:05]}
11. Qf3 {[%clk 00:51:27]} {[%emt 00:17:14]} c5 {[%clk 00:38:46]} {[%emt
00:18:01]} 12. Ne2 {[%clk 00:51:48]} {[%emt 00:00:09]} Re8 {[%clk 00:37:08]}
{[%emt 00:02:09]} 13. O-O {[%clk 00:47:10]} {[%emt 00:05:07]} c4 {[%clk
00:32:49]} {[%emt 00:04:49]} 14. Bc2 {[%clk 00:46:55]} {[%emt 00:00:45]} b5
{[%clk 00:31:22]} {[%emt 00:01:57]} 15. Nc3 {[%clk 00:33:23]} {[%emt 00:14:01]}
a6 {[%clk 00:16:52]} {[%emt 00:15:01]} 16. e4 {[%clk 00:22:55]} {[%emt
00:10:58]} dxe4 {[%clk 00:15:14]} {[%emt 00:02:08]} 17. Ndxe4 {[%clk 00:23:12]}
{[%emt 00:00:13]} Nxe4 {[%clk 00:15:10]} {[%emt 00:00:35]} 18. Nxe4 {[%clk
00:17:54]} {[%emt 00:05:48]} Qd5 {[%clk 00:14:15]} {[%emt 00:01:25]} 19. Rfe1
{[%clk 00:15:05]} {[%emt 00:03:18]} Bb7 {[%clk 00:14:07]} {[%emt 00:00:38]} 20.
Qg3 {[%clk 00:14:01]} {[%emt 00:01:34]} Qxd4 {[%clk 00:03:42]} {[%emt
00:10:56]} 21. Nd6 {[%clk 00:14:26]} {[%emt 00:00:04]} Rxe1+ {[%clk 00:03:22]}
{[%emt 00:00:50]} 22. Rxe1 {[%clk 00:14:52]} {[%emt 00:00:04]} Qd2 {[%clk
00:02:34]} {[%emt 00:01:18]} 23. Re7 {[%clk 00:09:36]} {[%emt 00:05:46]} Qxc2
{[%clk 00:02:11]} {[%emt 00:00:53]} 24. Rxd7 {[%clk 00:07:17]} {[%emt
00:02:48]} Bc6 {[%clk 00:01:00]} {[%emt 00:01:41]} 25. Rxf7 {[%clk 00:02:24]}
{[%emt 00:05:24]} Qg6 {[%clk 00:01:09]} {[%emt 00:00:21]} 26. Qxg6 {[%clk
00:02:21]} {[%emt 00:00:33]} hxg6 {[%clk 00:01:35]} {[%emt 00:00:03]} 27. Rc7
{[%clk 00:02:47]} {[%emt 00:00:05]} Bd5 {[%clk 00:01:40]} {[%emt 00:00:25]} 28.
Nc8 {[%clk 00:01:00]} {[%emt 00:02:17]} Be6 {[%clk 00:00:54]} {[%emt 00:01:16]}
29. Ne7+ {[%clk 00:01:10]} {[%emt 00:00:19]} Kf7 {[%clk 00:00:40]} {[%emt
00:00:45]} 30. Nd5+ {[%clk 00:01:01]} {[%emt 00:00:38]} Kf8 {[%clk 00:00:51]}
{[%emt 00:00:19]} 31. Nc3 {[%clk 00:01:04]} {[%emt 00:00:27]} Bf5 {[%clk
00:00:34]} {[%emt 00:00:48]} 32. g4 {[%clk 00:01:04]} {[%emt 00:00:30]} Bd3
{[%clk 00:00:37]} {[%emt 00:00:27]} 33. Kg2 {[%clk 00:01:11]} {[%emt 00:00:23]}
g5 {[%clk 00:00:34]} {[%emt 00:00:33]} 34. Kg3 {[%clk 00:01:10]} {[%emt
00:00:30]} Rd8 {[%clk 00:00:41]} {[%emt 00:00:24]} 35. Rc6 {[%clk 00:00:59]}
{[%emt 00:00:39]} Bh7 {[%clk 00:00:33]} {[%emt 00:00:39]} 36. Rxa6 {[%clk
00:01:05]} {[%emt 00:00:25]} Rd2 {[%clk 00:00:45]} {[%emt 00:00:19]} 37. Rb6
{[%clk 00:00:44]} {[%emt 00:00:51]} Rxb2 {[%clk 00:00:55]} {[%emt 00:00:20]} 38.
Rxb5 {[%clk 00:01:09]} {[%emt 00:00:05]} Rc2 {[%clk 00:00:34]} {[%emt
00:00:52]} 39. Nd5 {[%clk 00:01:26]} {[%emt 00:00:12]} Ra2 {[%clk 00:00:36]}
{[%emt 00:00:28]} 40. Ra5 {[%clk 00:16:00]} {[%emt 00:00:56]} Rd2 {[%clk
00:15:36]} {[%emt 00:00:31]} 41. Rc5 {[%clk 00:14:40]} {[%emt 00:01:50]} Rd3+
{[%clk 00:04:05]} {[%emt 00:12:01]} 42. Ne3 {[%clk 00:14:57]} {[%emt 00:00:12]}
Rxa3 {[%clk 00:03:58]} {[%emt 00:00:37]} 43. Rxc4 {[%clk 00:13:52]} {[%emt
00:01:34]} Kf7 {[%clk 00:04:01]} {[%emt 00:00:28]} 44. h4 {[%clk 00:11:15]}
{[%emt 00:03:06]} gxh4+ {[%clk 00:03:51]} {[%emt 00:00:41]} 45. Kxh4 {[%clk
00:11:32]} {[%emt 00:00:12]} Bd3 {[%clk 00:01:35]} {[%emt 00:02:47]} 46. Rc7+
{[%clk 00:09:05]} {[%emt 00:02:57]} Kf8 {[%clk 00:00:34]} {[%emt 00:01:30]} 47.
f4 {[%clk 00:06:07]} {[%emt 00:03:28]} Be4 {[%clk 00:00:47]} {[%emt 00:00:18]}
48. Nf1 {[%clk 00:06:18]} {[%emt 00:00:19]} Bd3 {[%clk 00:00:34]} {[%emt
00:00:43]} 49. Nd2 {[%clk 00:05:23]} {[%emt 00:01:23]} Ra5 {[%clk 00:00:33]}
{[%emt 00:00:33]} 50. Nf3 {[%clk 00:05:36]} {[%emt 00:00:16]} Ra4 {[%clk
00:00:34]} {[%emt 00:00:30]} 51. Ne5 {[%clk 00:04:59]} {[%emt 00:01:06]} Bb1
{[%clk 00:00:34]} {[%emt 00:00:30]} 52. Rc8+ {[%clk 00:04:10]} {[%emt
00:01:20]} Ke7 {[%clk 00:01:01]} {[%emt 00:00:03]} 53. Kg5 {[%clk 00:04:35]}
{[%emt 00:00:04]} Ba2 {[%clk 00:00:33]} {[%emt 00:00:58]} 54. Rc7+ {[%clk
00:04:50]} {[%emt 00:00:14]} Kf8 {[%clk 00:00:34]} {[%emt 00:00:29]} 55. Ng6+
{[%clk 00:05:09]} {[%emt 00:00:11]} Kg8 {[%clk 00:00:56]} {[%emt 00:00:09]} 56.
Rc8+ {[%clk 00:05:27]} {[%emt 00:00:12]} Kf7 {[%clk 00:01:21]} {[%emt
00:00:05]} 57. f5 {[%clk 00:05:33]} {[%emt 00:00:23]} 1-0

[Event "IV Elllobregat Open Chess Tmnt"]
[Site "Sant Boi de Llobregat, Spain"]
[Date "2023.12.01"]
[Round "2.7"]
[White "Sethuraman, S.P."]
[Black "Golubka, Petro"]
[Result "1-0"]
[TimeControl "90min/40moves + 15min/end + 30sec from move 1"]
[WhiteFideId "5021596"]
[BlackFideId "14114224"]
[WhiteElo "2603"]
[BlackElo "2419"]

1. e4 {[%clk 01:30:48]} {[%emt 00:00:10]} c5 {[%clk 00:53:32]} {[%emt
00:37:26]} 2. Nf3 {[%clk 01:31:12]} {[%emt 00:00:09]} e6 {[%clk 00:53:55]}
{[%emt 00:00:06]} 3. d4 {[%clk 01:31:13]} {[%emt 00:00:30]} cxd4 {[%clk
00:54:01]} {[%emt 00:00:23]} 4. Nxd4 {[%clk 01:31:38]} {[%emt 00:00:05]} a6
{[%clk 00:54:23]} {[%emt 00:00:09]} 5. a3 {[%clk 01:28:07]} {[%emt 00:04:00]}
Nc6 {[%clk 00:47:19]} {[%emt 00:07:34]} 6. Nc3 {[%clk 01:27:38]} {[%emt
00:00:58]} d5 {[%clk 00:46:41]} {[%emt 00:01:09]} 7. exd5 {[%clk 01:25:02]}
{[%emt 00:03:06]} exd5 {[%clk 00:46:33]} {[%emt 00:00:38]} 8. Be3 {[%clk
01:24:11]} {[%emt 00:01:20]} Nf6 {[%clk 00:46:15]} {[%emt 00:00:49]} 9. h3
{[%clk 01:22:49]} {[%emt 00:01:51]} Bd6 {[%clk 00:45:40]} {[%emt 00:01:06]} 10.
Qd2 {[%clk 01:19:09]} {[%emt 00:04:09]} O-O {[%clk 00:45:53]} {[%emt 00:00:18]}
11. O-O-O {[%clk 01:19:31]} {[%emt 00:00:07]} Be6 {[%clk 00:43:55]} {[%emt
00:02:28]} 12. g4 {[%clk 01:18:04]} {[%emt 00:01:57]} Rc8 {[%clk 00:37:54]}
{[%emt 00:06:32]} 13. g5 {[%clk 00:47:17]} {[%emt 00:31:16]} Nxd4 {[%clk
00:36:55]} {[%emt 00:01:31]} 14. Qxd4 {[%clk 00:46:35]} {[%emt 00:01:11]} Bc5
{[%clk 00:35:46]} {[%emt 00:01:39]} 15. Qf4 {[%clk 00:46:41]} {[%emt 00:00:24]}
Nh5 {[%clk 00:27:29]} {[%emt 00:08:43]} 16. Qf3 {[%clk 00:46:58]} {[%emt
00:00:14]} g6 {[%clk 00:27:51]} {[%emt 00:00:10]} 17. Bxc5 {[%clk 00:40:25]}
{[%emt 00:07:04]} Rxc5 {[%clk 00:22:31]} {[%emt 00:05:48]} 18. h4 {[%clk
00:40:52]} {[%emt 00:00:03]} Qc7 {[%clk 00:22:04]} {[%emt 00:00:58]} 19. Qe3
{[%clk 00:31:06]} {[%emt 00:10:16]} Ng7 {[%clk 00:20:22]} {[%emt 00:02:12]} 20.
Bh3 {[%clk 00:28:22]} {[%emt 00:03:13]} b5 {[%clk 00:19:40]} {[%emt 00:01:13]}
21. h5 {[%clk 00:26:11]} {[%emt 00:02:40]} gxh5 {[%clk 00:19:48]} {[%emt
00:00:23]} 22. Kb1 {[%clk 00:25:44]} {[%emt 00:00:56]} a5 {[%clk 00:19:51]}
{[%emt 00:00:28]} 23. Rd4 {[%clk 00:17:25]} {[%emt 00:08:48]} b4 {[%clk
00:17:20]} {[%emt 00:03:02]} 24. axb4 {[%clk 00:11:39]} {[%emt 00:06:16]} axb4
{[%clk 00:17:18]} {[%emt 00:00:31]} 25. Rxb4 {[%clk 00:12:05]} {[%emt
00:00:04]} Ra8 {[%clk 00:17:33]} {[%emt 00:00:15]} 26. Bxe6 {[%clk 00:04:26]}
{[%emt 00:08:09]} fxe6 {[%clk 00:16:59]} {[%emt 00:01:04]} 27. Rhh4 {[%clk
00:04:23]} {[%emt 00:00:33]} e5 {[%clk 00:15:37]} {[%emt 00:01:53]} 28. Nb5
{[%clk 00:02:21]} {[%emt 00:02:32]} Qc6 {[%clk 00:11:51]} {[%emt 00:04:16]} 29.
Qb3 {[%clk 00:02:45]} {[%emt 00:00:05]} Kh8 {[%clk 00:11:21]} {[%emt 00:01:00]}
30. Nc3 {[%clk 00:01:39]} {[%emt 00:01:36]} d4 {[%clk 00:08:22]} {[%emt
00:03:30]} 31. Na2 {[%clk 00:00:41]} {[%emt 00:01:28]} Qe8 {[%clk 00:07:52]}
{[%emt 00:00:58]} 32. Nc1 {[%clk 00:00:35]} {[%emt 00:00:37]} Rca5 {[%clk
00:07:48]} {[%emt 00:00:35]} 33. c4 {[%clk 00:01:01]} {[%emt 00:00:04]} e4
{[%clk 00:06:42]} {[%emt 00:01:36]} 34. Kc2 {[%clk 00:01:13]} {[%emt 00:00:18]}
Rxg5 {[%clk 00:06:28]} {[%emt 00:00:44]} 35. Rb5 {[%clk 00:00:33]} {[%emt
00:01:10]} h6 {[%clk 00:05:17]} {[%emt 00:01:41]} 36. Rf4 {[%clk 00:00:41]}
{[%emt 00:00:22]} Rc8 {[%clk 00:04:29]} {[%emt 00:01:19]} 37. Rb6 {[%clk
00:00:45]} {[%emt 00:00:26]} Rgc5 {[%clk 00:03:54]} {[%emt 00:01:04]} 38. Rxh6+
{[%clk 00:00:56]} {[%emt 00:00:19]} Kg8 {[%clk 00:04:21]} {[%emt 00:00:01]} 39.
Kb1 {[%clk 00:01:01]} {[%emt 00:00:27]} d3 {[%clk 00:03:36]} {[%emt 00:01:15]}
40. Na2 {[%clk 00:16:11]} {[%emt 00:00:19]} Qe5 {[%clk 00:17:58]} {[%emt
00:01:08]} 41. Rff6 {[%clk 00:13:53]} {[%emt 00:02:48]} Rd8 {[%clk 00:17:15]}
{[%emt 00:01:14]} 42. Nc3 {[%clk 00:12:07]} {[%emt 00:02:15]} d2 {[%clk
00:16:52]} {[%emt 00:00:54]} 43. Nd1 {[%clk 00:04:22]} {[%emt 00:08:15]} Rb8
{[%clk 00:09:41]} {[%emt 00:07:41]} 44. Rb6 {[%clk 00:04:08]} {[%emt 00:00:44]}
Rxb6 {[%clk 00:09:35]} {[%emt 00:00:37]} 45. Qxb6 {[%clk 00:04:04]} {[%emt
00:00:33]} e3 {[%clk 00:06:33]} {[%emt 00:03:33]} 46. Qd8+ {[%clk 00:03:39]}
{[%emt 00:00:54]} Kf7 {[%clk 00:05:21]} {[%emt 00:01:42]} 47. Nxe3 {[%clk
00:03:30]} {[%emt 00:00:40]} Rxc4 {[%clk 00:03:09]} {[%emt 00:02:42]} 48. Nxc4
{[%clk 00:03:31]} {[%emt 00:00:29]} 1-0